bitfinex-derivatives/quotes_ETHF0:USTF0_20250530
["timestamp","ask_amount","ask_price","bid_price","bid_amount"]
[1748638045503,0.7788217,2586.8,2586.7,0.91147809]
[1748638045705,0.7788217,2586.8,2586.7,1.206465]
[1748638045903,0.7788217,2586.8,2586.7,0.91147809]
[1748638046609,0.7788217,2586.8,2586.7,3.2042729]
[1748638047311,1.93212,2587.4,2586.7,5.1369029]
[1748638047513,0.77297,2587.0,2586.9,0.77297]
[1748638047704,1.93212,2587.4,2586.9,0.77297]
[1748638048007,0.77293,2587.1,2587.0,1.3261]
[1748638048212,1.93212,2587.4,2587.0,2.09904]
[1748638048510,0.77293,2587.1,2587.0,2.09904]
[1748638048712,0.77293,2587.1,2587.0,4.39183481]
[1748638049106,0.7786817,2587.3,2587.2,0.7729]
[1748638049307,0.77292,2587.2,2587.1,0.77292]
[1748638049811,0.77293,2587.1,2587.0,4.38565579]
[1748638050008,0.77293,2587.1,2587.0,4.68040943]
[1748638050218,0.77293,2587.1,2587.0,3.61271579]
[1748638050416,0.77293,2587.1,2587.0,2.29279481]
[1748638050618,0.773,2586.9,2586.8,3.83062398]
[1748638050818,0.773,2586.9,2586.8,4.12536123]
[1748638051013,0.77296,2587.1,2587.0,0.77295]
[1748638051319,3.2544917,2587.3,2586.7,2.84409809]
[1748638051515,0.77296,2587.1,2587.0,0.77295]
[1748638051919,0.77298,2587.0,2586.9,0.77297]
[1748638052420,3.2544917,2587.3,2586.7,5.90171207]
[1748638052421,1.93237,2587.1,2586.8,0.773]
[1748638052621,0.77302,2586.9,2586.8,0.773]
[1748638053118,0.77302,2586.9,2586.8,2.28771043]
[1748638053315,0.77302,2586.9,2586.8,1.219]
[1748638055014,3.27977,2587.1,2586.7,0.91147809]
[1748638055015,0.77302,2586.8,2586.7,0.91147809]
[1748638056522,0.77302,2586.8,2586.7,3.20434644]
[1748638057518,0.77302,2586.8,2586.7,0.91147809]
[1748638062323,0.77302,2586.8,2586.7,0.29517809]
[1748638064215,0.77302,2586.8,2586.7,0.59111772]
[1748638064421,0.77302,2586.8,2586.7,0.29517809]
[1748638066127,2.09682,2586.8,2586.7,0.29517809]
[1748638068231,2.09682,2586.8,2586.7,1.8242914]
[1748638068825,2.09682,2586.8,2586.7,0.29517809]
[1748638072120,2.09682,2586.8,2586.7,1.82388491]
[1748638074927,2.09682,2586.8,2586.7,0.29517809]
[1748638076230,2.28952,2586.8,2586.7,0.29517809]
[1748638076729,2.28952,2586.8,2586.7,1.82415775]
[1748638077634,2.28952,2586.8,2586.7,0.29517809]
[1748638078234,2.28952,2586.8,2586.7,0.59105278]
[1748638078431,2.28952,2586.8,2586.7,2.88290845]
[1748638078629,2.28952,2586.8,2586.7,2.88290962]
[1748638078936,2.28952,2586.8,2586.7,2.58703487]
[1748638079235,2.28952,2586.8,2586.7,0.29517809]
[1748638081236,2.28952,2586.8,2586.7,1.82424792]
[1748638082238,2.28952,2586.8,2586.7,0.29517809]
[1748638083540,2.28952,2586.8,2586.7,1.82424792]
[1748638084042,2.28952,2586.8,2586.7,0.29517809]
[1748638087843,2.28952,2586.8,2586.7,1.82589532]
[1748638088642,2.28952,2586.8,2586.7,0.29517809]
[1748638091542,0.96572,2586.8,2586.7,0.96397809]
[1748638093346,2.29122,2586.8,2586.7,0.96397809]
[1748638094840,2.29122,2586.8,2586.7,1.25351483]
[1748638095043,2.29122,2586.8,2586.7,0.96397809]
[1748638098544,2.29122,2586.8,2586.7,3.25974685]
[1748638099248,2.29122,2586.8,2586.7,0.96397809]
[1748638099546,2.29122,2586.8,2586.7,1.25447949]
[1748638099750,2.29122,2586.8,2586.7,0.96397809]
[1748638100250,2.29122,2586.8,2586.7,1.25444217]
[1748638100446,2.29122,2586.8,2586.7,0.96397809]
[1748638100646,0.96572,2586.8,2586.7,3.55025061]
[1748638100843,0.96572,2586.8,2586.7,3.55028029]
[1748638101348,0.96572,2586.8,2586.7,3.25974685]
[1748638101548,0.96572,2586.8,2586.7,0.96397809]
[1748638101747,0.96572,2586.8,2586.7,1.25444592]
[1748638101949,0.96572,2586.8,2586.7,1.25446884]
[1748638102149,0.96572,2586.8,2586.7,0.96397809]
[1748638102347,0.96572,2586.8,2586.7,1.25446857]
[1748638102552,0.96572,2586.8,2586.7,0.96397809]
[1748638102751,0.96572,2586.8,2586.7,1.25448869]
[1748638103454,0.96572,2586.8,2586.7,0.96397809]
[1748638103654,0.96572,2586.8,2586.7,1.25422547]
[1748638103853,0.96572,2586.8,2586.7,1.25387175]
[1748638104055,0.96572,2586.8,2586.7,0.96397809]
[1748638104249,0.96572,2586.8,2586.7,1.25387238]
[1748638104554,0.96572,2586.8,2586.7,0.96397809]
[1748638106055,0.0058017,2587.3,2586.7,5.96397809]
[1748638106247,0.77291,2587.2,2586.7,0.96397809]
[1748638106446,0.77296,2587.1,2586.9,0.77296]
[1748638106655,0.77296,2587.1,2587.0,1.3158]
[1748638106856,0.77296,2587.1,2587.0,4.37341398]
[1748638107255,0.77296,2587.1,2587.0,3.05761398]
[1748638107552,0.77296,2587.1,2587.0,2.00029398]
[1748638107956,0.77302,2586.8,2586.7,6.92197809]
[1748638108161,0.77314,2586.4,2586.3,0.0058017]
[1748638109255,0.77314,2586.4,2586.3,4.1288017]
[1748638109659,1.3357,2586.7,2586.3,4.1288017]
[1748638109856,0.77311,2586.5,2586.4,1.3298]
[1748638110355,0.77314,2586.4,2586.3,2.29727647]
[1748638110551,0.77314,2586.4,2586.3,6.42027647]
[1748638110759,0.77314,2586.4,2586.3,5.4586017]
[1748638111361,0.77314,2586.4,2586.3,5.99538154]
[1748638112356,0.77314,2586.4,2586.3,0.0058017]
[1748638112957,0.77314,2586.4,2586.3,1.1235648]
[1748638113262,0.77314,2586.4,2586.3,2.65159205]
[1748638113656,0.77314,2586.4,2586.3,3.32330373]
[1748638114159,0.77314,2586.4,2586.3,2.75412895]
[1748638114761,0.77314,2586.4,2586.3,6.87812895]
[1748638116059,0.77314,2586.4,2586.3,5.65782895]
[1748638116261,0.77314,2586.4,2586.3,1.53382895]
[1748638116462,0.77314,2586.4,2586.3,2.09893498]
[1748638116766,0.77314,2586.4,2586.3,2.64773948]
[1748638117066,0.77314,2586.4,2586.3,2.64730783]
[1748638117264,0.77314,2586.4,2586.3,2.09885011]
[1748638117563,0.77314,2586.4,2586.3,2.6471517]
[1748638117961,0.77314,2586.4,2586.3,1.11936373]
[1748638118361,0.77314,2586.4,2586.3,2.44236373]
[1748638119065,0.77314,2586.4,2586.3,2.44255219]
[1748638119264,0.77314,2586.4,2586.3,2.44254172]
[1748638119464,0.77314,2586.4,2586.3,1.3288017]
[1748638119666,0.77314,2586.4,2586.3,2.44201602]
[1748638120271,0.77314,2586.4,2586.3,6.87615592]
[1748638120464,0.77314,2586.4,2586.3,5.55315592]
[1748638120660,0.77314,2586.4,2586.3,0.55415984]
[1748638120867,0.77314,2586.4,2586.3,5.55322248]
[1748638121069,0.77314,2586.4,2586.3,4.1298017]
[1748638121378,0.77314,2586.4,2586.3,2.95748729]
[1748638121585,2.02484,2586.4,2586.3,7.08148729]
[1748638121890,2.02484,2586.4,2586.3,1.53320337]
[1748638122190,2.02484,2586.4,2586.3,0.62431611]
[1748638123187,2.02484,2586.4,2586.3,2.04851441]
[1748638123588,2.02484,2586.4,2586.3,4.33998918]
[1748638123777,2.02484,2586.4,2586.3,4.34010177]
[1748638124084,2.02484,2586.4,2586.3,2.70063653]
[1748638124281,2.02484,2586.4,2586.3,2.71720611]
[1748638124482,2.02484,2586.4,2586.3,2.15198959]
[1748638125481,0.77314,2586.4,2586.3,3.01104512]
[1748638125687,0.77314,2586.4,2586.3,2.15198959]
[1748638126587,0.77314,2586.4,2586.3,2.70070893]
[1748638126789,0.77314,2586.4,2586.3,2.15198959]
[1748638127202,0.77314,2586.4,2586.3,2.46230282]
[1748638127388,2.10914,2586.4,2586.3,2.15198959]
[1748638127687,2.10914,2586.4,2586.3,0.62431611]
[1748638128700,1.336,2586.4,2586.3,1.52767348]
[1748638128990,0.77314,2586.4,2586.3,1.52767348]
[1748638129192,2.10914,2586.4,2586.3,1.52767348]
[1748638129385,2.10914,2586.4,2586.3,1.59761205]
[1748638129792,2.10914,2586.4,2586.3,0.06993857]
[1748638130889,2.10914,2586.4,2586.3,0.61922849]
[1748638131088,2.10914,2586.4,2586.3,8.57e-06]
[1748638131388,0.7732,2586.2,2586.1,1.53347518]
[1748638131793,0.7732,2586.2,2586.1,0.0058017]
[1748638133494,1.4464,2586.2,2586.1,0.0058017]
[1748638134494,1.4464,2586.2,2586.1,1.52738605]
[1748638134792,0.77328,2585.9,2585.8,2.92617477]
[1748638134999,0.77328,2585.9,2585.8,0.6347]
[1748638135294,0.77334,2585.7,2585.6,7.03267477]
[1748638136490,0.77334,2585.7,2585.6,0.6192]
[1748638137094,0.7734,2585.5,2585.4,7.02837647]
[1748638137499,0.7734,2585.5,2585.4,2.90637647]
[1748638138298,0.7734,2585.5,2585.4,0.6149017]
[1748638139000,0.7734,2585.5,2585.4,4.7379017]
[1748638141100,0.7734,2585.5,2585.4,0.6149017]
[1748638142007,1.93336,2585.7,2585.4,0.6149017]
[1748638142309,0.7734,2585.5,2585.4,0.6149017]
[1748638142602,0.7734,2585.5,2585.4,4.7379017]
[1748638143398,0.7734,2585.5,2585.4,0.6149017]
[1748638144305,0.7734,2585.5,2585.4,1.1497175]
[1748638144510,0.7734,2585.5,2585.4,0.68484027]
[1748638144700,0.7734,2585.5,2585.4,1.21969656]
[1748638144902,0.7734,2585.5,2585.4,0.68484027]
[1748638145102,0.7734,2585.5,2585.4,1.21880143]
[1748638145301,0.7734,2585.5,2585.4,1.21751233]
[1748638145801,0.7734,2585.5,2585.4,1.21751219]
[1748638146007,0.7734,2585.5,2585.4,0.68484027]
[1748638147704,0.7734,2585.5,2585.4,2.47312899]
[1748638147908,0.7734,2585.5,2585.4,1.94034027]
[1748638148906,0.7734,2585.5,2585.4,0.68484027]
[1748638151806,0.7734,2585.5,2585.4,1.22018971]
[1748638152007,0.7734,2585.5,2585.4,0.68484027]
[1748638152403,0.7734,2585.5,2585.4,2.7e-07]
[1748638152805,2.1119,2585.5,2585.4,2.7e-07]
[1748638155013,2.1119,2585.5,2585.2,2.2984711]
[1748638155014,0.77346,2585.3,2585.2,2.2984711]
[1748638155811,0.77346,2585.3,2585.2,0.0058017]
[1748638157608,1.93329,2585.8,2585.2,5.0058017]
[1748638157916,0.7734,2585.5,2585.4,0.06993857]
[1748638158106,0.7734,2585.5,2585.4,5.43443857]
[1748638159014,0.7734,2585.5,2585.4,1.31043857]
[1748638159218,0.7734,2585.5,2585.4,5.43343857]
[1748638160421,0.7734,2585.5,2585.4,7.72445111]
[1748638161519,0.7734,2585.5,2585.4,5.43343857]
[1748638161719,0.7734,2585.5,2585.4,5.40143857]
[1748638162121,0.7734,2585.5,2585.4,5.94446783]
[1748638163317,0.7734,2585.5,2585.4,1.85346783]
[1748638163715,0.7734,2585.5,2585.4,5.94446783]
[1748638163913,0.7734,2585.5,2585.4,1.85346783]
[1748638164215,0.7734,2585.5,2585.4,5.94446783]
[1748638165918,0.7734,2585.5,2585.4,6.48761312]
[1748638166119,0.7734,2585.5,2585.4,6.47557395]
[1748638166420,0.7734,2585.5,2585.4,5.94446783]
[1748638169718,0.7734,2585.5,2585.4,6.47551721]
[1748638169922,0.7734,2585.5,2585.4,5.94446783]
[1748638170424,0.7734,2585.5,2585.4,0.61296783]
[1748638170925,0.7734,2585.5,2585.4,2.90552337]
[1748638171121,2.0106,2585.5,2585.4,2.90552337]
[1748638171619,10.3282,2585.5,2584.8,3.05689253]
[1748638171824,0.77376,2584.3,2583.7,2.5621]
[1748638172021,0.77376,2584.3,2583.7,3.33602]
[1748638172322,0.1934,2584.3,2583.8,4.091]
[1748638172518,0.1934,2584.3,2584.1,0.77381]
[1748638172714,0.96716,2584.3,2584.2,7.91211566]
[1748638173121,0.96716,2584.3,2584.2,4.091]
[1748638173424,0.77379,2584.2,2584.1,1.8931]
[1748638173628,0.77379,2584.2,2584.1,5.9841]
[1748638174220,0.77379,2584.2,2584.1,5.9851]
[1748638175025,0.77379,2584.2,2584.1,6.05503857]
[1748638176028,0.77379,2584.2,2584.1,1.96303857]
[1748638176321,0.77379,2584.2,2584.1,0.06993857]
[1748638176527,0.77379,2584.2,2584.1,1.95993857]
[1748638177623,0.77379,2584.2,2584.1,0.06993857]
[1748638177827,2.11759,2584.2,2584.1,0.06993857]
[1748638178722,2.77549,2584.2,2584.1,0.06993857]
[1748638181127,2.77549,2584.2,2584.1,0.35653651]
[1748638181428,2.77549,2584.2,2584.1,0.06993857]
[1748638181621,2.77549,2584.2,2584.1,0.35653714]
[1748638181828,2.77549,2584.2,2584.1,0.3565381]
[1748638182129,2.77549,2584.2,2584.1,0.35651072]
[1748638182331,2.77549,2584.2,2584.1,0.06993857]
[1748638184231,11.0947,2584.2,2582.5,5.75685566]
[1748638184531,6.0947,2584.2,2583.1,1.06072243]
[1748638184730,0.77406,2583.3,2583.2,0.28663243]
[1748638184930,0.77406,2583.3,2583.2,0.6166]
[1748638185129,0.77406,2583.3,2583.2,5.6166]
[1748638185324,0.77406,2583.3,2583.2,0.6166]
[1748638190228,0.77406,2583.3,2583.2,0.68653857]
[1748638190836,0.96756,2583.3,2583.2,0.68653857]
[1748638192336,0.96756,2583.3,2582.7,2.27953451]
[1748638192337,0.77419,2582.8,2582.7,2.27953451]
[1748638193231,0.77419,2582.8,2582.7,1.14064112]
[1748638194338,0.77432,2582.4,2582.3,6.0387]
[1748638196336,0.77432,2582.4,2582.3,1.9217]
[1748638196834,0.77432,2582.4,2582.3,0.6551]
[1748638201444,0.77432,2582.4,2582.3,1.9341]
[1748638201942,1.93564,2582.7,2582.3,6.9341]
[1748638202141,0.0058017,2583.0,2582.3,1.9341]
[1748638202142,1.9355,2582.8,2582.3,1.9341]
[1748638202544,1.9355,2582.8,2582.3,4.21538574]
[1748638202745,0.77432,2582.4,2582.3,4.21538574]
[1748638203044,1.93565,2582.6,2582.3,4.21538574]
[1748638203242,0.77432,2582.4,2582.3,9.21538574]
[1748638203742,0.77432,2582.4,2582.3,6.9341]
[1748638204147,0.77432,2582.4,2582.3,12.8921]
[1748638204348,0.77432,2582.4,2582.3,12.96203857]
[1748638207949,0.77432,2582.4,2582.3,13.73638857]
[1748638208844,0.96792,2582.4,2582.3,13.73638857]
[1748638209045,0.96792,2582.4,2582.3,12.96203857]
[1748638209743,0.96792,2582.4,2582.3,17.08003857]
[1748638210039,0.96792,2582.4,2582.3,11.12203857]
[1748638210245,0.96792,2582.4,2582.3,6.12203857]
[1748638212745,0.95745592,2582.4,2582.3,6.12203857]
[1748638214840,0.1936,2582.4,2582.3,6.89637857]
[1748638215345,0.96791,2582.4,2582.3,6.89637857]
[1748638215947,0.96791,2582.4,2582.3,12.85437857]
[1748638216148,0.96791,2582.4,2582.3,15.89609289]
[1748638216542,0.96791,2582.4,2582.3,15.12175289]
[1748638217147,0.96791,2582.4,2582.3,15.89609289]
[1748638217942,0.1936,2582.4,2582.3,15.89609289]
[1748638218744,0.96791,2582.4,2582.3,15.89609289]
[1748638218937,0.1936,2582.4,2582.3,15.89609289]
[1748638219142,0.96791,2582.4,2582.3,15.89609289]
[1748638219848,0.96791,2582.4,2582.3,12.85437857]
[1748638220754,0.96791,2582.4,2582.3,15.89609289]
[1748638221253,0.96791,2582.4,2582.3,17.85437857]
[1748638221950,0.96791,2582.4,2582.3,7.96203857]
[1748638222153,0.96791,2582.4,2582.3,12.08003857]
[1748638222347,0.96791,2582.4,2582.3,12.85437857]
[1748638222548,0.96791,2582.4,2582.3,12.08003857]
[1748638223754,0.96791,2582.4,2582.3,12.85437857]
[1748638225954,0.96791,2582.4,2582.3,15.92112563]
[1748638226151,0.96791,2582.4,2582.3,15.14678563]
[1748638226857,0.96791,2582.4,2582.3,12.08003857]
[1748638227358,0.96791,2582.4,2582.3,12.85437857]
[1748638227953,0.1936,2582.4,2582.3,12.85437857]
[1748638228355,0.1936,2582.4,2582.3,6.89637857]
[1748638229757,0.96791,2582.4,2582.3,6.89637857]
[1748638229957,0.1936,2582.4,2582.3,6.89637857]
[1748638237265,2.12323,2582.8,2582.7,0.77422]
[1748638237463,2.12323,2582.8,2582.7,4.038]
[1748638238664,0.77423,2582.8,2582.7,4.81222]
[1748638239960,0.77423,2582.8,2582.7,4.038]
[1748638240158,2.09823,2582.8,2582.7,4.038]
[1748638241166,2.09823,2582.8,2582.7,5.44712]
[1748638241362,0.1935,2582.9,2582.8,0.77419]
[1748638241556,0.96766,2582.9,2582.8,2.04979]
[1748638241753,0.96766,2582.9,2582.8,1.2756]
[1748638242367,0.77419,2582.8,2582.7,0.6349]
[1748638242563,0.77419,2582.8,2582.7,10.6309]
[1748638243761,5.77419,2582.8,2582.7,1.86796495]
[1748638244066,6.42119,2582.8,2582.7,1.07525495]
[1748638244466,6.42119,2582.8,2582.7,4.95e-06]
[1748638245169,6.42119,2582.8,2582.6,3.8294909]
[1748638245170,0.77422,2582.7,2582.6,2.29818036]
[1748638245363,2.65482,2582.7,2582.6,2.29818036]
[1748638245560,7.65482,2582.7,2582.6,1.52097036]
[1748638245761,0.77431,2582.4,2582.3,4.10793857]
[1748638252166,0.77431,2582.4,2582.3,0.06993857]
[1748638252467,0.77431,2582.4,2582.3,8.57e-06]
[1748638254369,5.77431,2582.4,2582.3,8.57e-06]
[1748638257179,0.7744,2582.1,2582.0,1e-08]
[1748638257668,5.7744,2582.1,2582.0,1e-08]
[1748638257869,5.7744,2582.1,2581.1,1.9556]
[1748638257870,0.77461,2581.4,2581.3,3.988]
[1748638258670,0.77467,2581.2,2581.1,0.6199]
[1748638258973,0.77467,2581.2,2581.1,3.989]
[1748638259171,1.93677,2581.1,2580.3,3.0574777]
[1748638259366,0.77481,2580.8,2580.6,0.77484]
[1748638259567,0.77481,2580.8,2580.7,0.6446]
[1748638259767,0.77481,2580.8,2580.7,1.9803]
[1748638262277,0.77481,2580.8,2580.7,5.9693]
[1748638263980,0.96851,2580.8,2580.7,5.9693]
[1748638265075,0.96851,2580.8,2580.7,0.6446]
[1748638265280,0.77482,2580.7,2580.6,5.958]
[1748638265477,2.05942,2580.7,2580.6,5.958]
[1748638265879,2.05942,2580.7,2580.6,9.947]
[1748638266683,2.05942,2580.7,2580.6,5.958]
[1748638267090,8.22169,2580.7,2580.2,2.28438326]
[1748638267278,1.2846,2580.7,2579.7,3.0574777]
[1748638267483,0.77509,2579.8,2579.7,3.0574777]
[1748638267881,0.0058135,2580.0,2579.9,0.77506]
[1748638268082,0.0058135,2580.0,2579.9,4.76506]
[1748638268388,0.0058135,2580.0,2579.9,5.43246]
[1748638270583,0.0058135,2580.0,2579.9,10.43246]
[1748638272778,2.13076,2580.8,2580.0,1.93758]
[1748638272983,0.1937,2580.8,2580.7,0.77483]
[1748638273184,0.1937,2580.8,2580.7,4.76583]
[1748638273691,0.77472,2581.1,2581.0,0.77474]
[1748638273889,0.7747,2581.2,2581.1,0.77469]
[1748638274092,0.7747,2581.2,2581.1,4.76569]
[1748638276493,0.1995135,2581.3,2581.2,0.77468]
[1748638276695,0.1995135,2581.3,2581.2,1.41648]
[1748638276992,0.9741635,2581.3,2581.2,1.41648]
[1748638277787,0.1995135,2581.3,2581.2,1.41648]
[1748638278597,1.93628,2581.8,2581.2,1.41648]
[1748638278598,0.77451,2581.8,2581.7,0.77449]
[1748638278796,0.77451,2581.8,2581.7,4.76449]
[1748638279793,0.0058135,2582.0,2581.7,3.99]
[1748638279992,0.7745,2581.8,2581.7,4.76451]
[1748638282602,0.1936,2581.9,2581.8,0.7745]
[1748638282795,0.96807,2581.9,2581.8,0.7745]
[1748638283202,0.1936,2581.9,2581.8,0.7745]
[1748638283402,0.96807,2581.9,2581.8,0.7745]
[1748638284702,0.77453,2581.7,2581.6,5.958]
[1748638284897,0.77453,2581.7,2581.6,9.961]
[1748638285299,0.77459,2581.5,2581.4,3.0574777]
[1748638286005,2.02399,2581.5,2581.4,3.0574777]
[1748638286205,0.77468,2581.2,2581.1,3.0574777]
[1748638286404,0.77468,2581.2,2581.1,3.8321877]
[1748638286699,0.77468,2581.2,2581.1,0.77471]
[1748638286908,0.77468,2581.2,2581.1,1.44521]
[1748638287200,0.77468,2581.2,2581.1,0.6705]
[1748638288502,0.77468,2581.2,2581.1,4.6735]
[1748638288805,0.77468,2581.2,2581.1,5.44821]
[1748638288998,0.77468,2581.2,2581.1,4.6735]
[1748638291100,0.77468,2581.2,2581.1,5.44821]
[1748638291601,0.77468,2581.2,2581.1,0.6705]
[1748638291902,0.77486,2580.6,2580.5,4.0088135]
[1748638293401,0.77486,2580.6,2580.5,0.0058135]
[1748638293601,0.77486,2580.6,2580.5,4.0088135]
[1748638295902,0.77486,2580.6,2580.5,4.6769135]
[1748638297113,4.06606,2581.9,2580.6,1.93714]
[1748638297408,0.77473,2581.1,2581.0,0.77471]
[1748638297607,0.77473,2581.1,2581.0,4.77871]
[1748638298314,0.77473,2581.1,2581.0,4.004]
[1748638298625,0.77478,2580.9,2580.8,0.77478]
[1748638298915,0.77475,2581.0,2580.9,0.77474]
[1748638299513,0.77475,2581.0,2580.9,4.77874]
[1748638299815,1.2192,2581.3,2580.9,4.004]
[1748638300113,0.77473,2581.1,2581.0,0.7747]
[1748638301213,1.2192,2581.3,2580.9,5.2449]
[1748638301413,1.2192,2581.3,2581.0,1.2832]
[1748638301608,1.99386,2581.3,2581.2,0.77468]
[1748638303215,0.77471,2581.1,2581.0,6.35467]
[1748638303515,0.77471,2581.1,2581.0,5.2862]
[1748638303912,0.77471,2581.1,2581.0,6.06094]
[1748638304110,6.93684,2581.1,2580.2,3.8294909]
[1748638304314,0.77495,2580.3,2580.2,3.8294909]
[1748638305013,0.775,2580.1,2580.0,4.286]
[1748638305717,0.77507,2579.9,2579.8,0.0058135]
[1748638305918,0.77507,2579.9,2579.8,4.2918135]
[1748638306821,0.77507,2579.9,2579.8,0.0058135]
[1748638307021,0.77507,2579.9,2579.8,4.2928135]
[1748638309024,0.77507,2579.9,2579.8,0.0058135]
[1748638309225,0.77507,2579.9,2579.8,4.2928135]
[1748638311725,0.96887,2579.9,2579.8,4.2928135]
[1748638313337,1.9379,2579.6,2578.7,4.287]
[1748638313533,0.77537,2578.9,2578.8,4.287]
[1748638314630,0.77543,2578.7,2578.6,1.2911]
[1748638314831,0.77543,2578.7,2578.6,5.5781]
[1748638315334,0.77543,2578.7,2578.6,5.5791]
[1748638316233,0.77543,2578.7,2578.6,1.2911]
[1748638316531,0.77543,2578.7,2578.6,5.5791]
[1748638316734,0.77543,2578.7,2578.6,6.35456]
[1748638317030,0.77543,2578.7,2578.6,2.06656]
[1748638317232,0.77541,2578.8,2578.7,0.7754]
[1748638317433,0.77541,2578.8,2578.7,5.0634]
[1748638317732,0.77541,2578.8,2578.7,0.7754]
[1748638317932,0.77543,2578.8,2578.7,4.288]
[1748638319426,0.77543,2578.8,2578.7,5.06343]
[1748638319626,0.77543,2578.8,2578.7,4.288]
[1748638320122,0.7812035,2578.9,2578.8,0.7754]
[1748638320332,0.7812035,2578.9,2578.8,2.0504]
[1748638320635,0.7812035,2578.9,2578.8,1.275]
[1748638321636,0.7754,2578.8,2578.7,4.288]
[1748638322137,0.0058135,2578.9,2578.5,2.03876]
[1748638322329,0.7754,2578.8,2578.7,4.289]
[1748638322730,0.77543,2578.7,2578.6,0.77546]
[1748638322933,0.77546,2578.6,2578.5,2.03876]
[1748638323130,0.77546,2578.6,2578.5,6.32776]
[1748638323327,0.0058135,2578.9,2578.8,0.7754]
[1748638323629,0.0058135,2578.9,2578.8,5.7754]
[1748638324428,0.7811835,2578.9,2578.8,5.7754]
[1748638324629,0.7754,2578.8,2578.7,2.0387]
[1748638324826,0.7754,2578.8,2578.7,6.3277]
[1748638325130,0.7754,2578.8,2578.7,2.0387]
[1748638325338,0.7754,2578.8,2578.0,18.798]
[1748638325339,0.77585,2577.3,2577.2,2.95e-06]
[1748638325630,38.77245,2578.7,2576.1,4.91]
[1748638325631,0.77603,2576.7,2576.1,4.91]
[1748638326934,0.77603,2576.7,2576.1,5.68621]
[1748638327133,0.77603,2576.7,2576.1,39.082]
[1748638327339,1.2782,2576.9,2576.1,39.082]
[1748638327540,0.7761,2576.5,2576.2,5.142]
[1748638328041,1.2782,2576.9,2576.3,5.142]
[1748638328238,1.94,2576.8,2576.4,5.142]
[1748638328433,0.77609,2576.5,2576.4,5.142]
[1748638329232,0.77615,2576.3,2576.2,1.3]
[1748638329429,0.77615,2576.3,2576.2,6.442]
[1748638330635,0.77615,2576.3,2576.2,5.142]
[1748638330939,0.77618,2576.2,2576.1,39.082]
[1748638331137,0.77618,2576.2,2576.1,44.226]
[1748638331736,0.77618,2576.2,2576.1,39.082]
[1748638332132,0.77618,2576.2,2576.1,44.226]
[1748638332742,0.77618,2576.2,2576.1,39.082]
[1748638333038,0.77618,2576.2,2576.1,44.226]
[1748638333637,0.77618,2576.2,2576.1,44.227]
[1748638334538,0.77618,2576.2,2576.1,39.082]
[1748638334740,0.77618,2576.2,2576.1,44.227]
[1748638335135,0.77618,2576.2,2576.1,39.082]
[1748638335335,0.77618,2576.2,2576.1,44.227]
[1748638338148,0.77618,2576.2,2576.1,39.082]
[1748638338345,0.77618,2576.2,2576.1,44.227]
[1748638339744,0.77618,2576.2,2576.1,44.228]
[1748638342349,1.3037,2576.3,2576.2,0.77618]
[1748638342544,0.77609,2576.6,2576.1,46.1685]
[1748638342751,0.77609,2576.6,2576.5,0.77607]
[1748638343153,0.77612,2576.5,2576.4,0.7761]
[1748638343353,0.97012,2576.5,2576.4,0.7761]
[1748638343747,0.194,2576.5,2576.4,0.7761]
[1748638343948,0.194,2576.5,2576.4,5.7761]
[1748638344350,0.194,2576.5,2576.4,0.7761]
[1748638344643,0.77605,2576.7,2576.6,0.77606]
[1748638344854,0.77605,2576.7,2576.6,5.92206]
[1748638345043,0.77603,2576.8,2576.7,0.776]
[1748638345653,1.3462,2576.9,2576.8,0.776]
[1748638345654,0.77599,2576.9,2576.8,0.776]
[1748638346255,0.77595,2577.0,2576.9,0.77594]
[1748638347144,1.5216,2577.1,2576.7,1.2436]
[1748638347448,0.194,2577.1,2577.0,0.77594]
[1748638348153,0.96991,2577.1,2577.0,0.77594]
[1748638348858,0.77597,2576.9,2576.8,1.42147]
[1748638349055,0.77597,2576.9,2576.8,5.69597]
[1748638351653,0.194,2577.1,2577.0,0.77594]
[1748638352157,0.96991,2577.1,2577.0,0.77594]
[1748638352657,0.194,2577.1,2577.0,0.77594]
[1748638353253,0.194,2577.1,2577.0,2.08674]
[1748638354264,0.96991,2577.1,2577.0,2.08674]
[1748638355063,0.96991,2577.1,2577.0,1.3108]
[1748638355358,0.96991,2577.1,2577.0,0.77594]
[1748638356261,0.77594,2577.0,2576.9,1.43374]
[1748638359558,0.76320858,2577.0,2576.9,1.43374]
[1748638363361,0.96993,2577.1,2577.0,0.77594]
[1748638366168,0.776,2576.9,2576.8,0.77595]
[1748638366361,0.776,2576.9,2576.8,5.69495]
[1748638369571,0.776,2576.9,2576.8,0.77595]
[1748638369771,0.776,2576.9,2576.8,5.46095]
[1748638370169,0.776,2576.9,2576.8,0.77595]
[1748638370477,0.776,2576.9,2576.8,5.46095]
[1748638374580,0.97,2576.9,2576.8,5.46095]
[1748638375678,0.96997,2576.9,2576.8,5.46095]
[1748638376279,0.194,2576.9,2576.8,5.46095]
[1748638376482,0.194,2576.9,2576.8,8.49435324]
[1748638376679,1.4316,2576.9,2576.8,8.49435324]
[1748638376978,2.20757,2576.9,2576.8,8.49435324]
[1748638377274,2.20757,2576.9,2576.8,5.46095]
[1748638379780,2.20757,2576.9,2576.8,0.77595]
[1748638379979,2.20757,2576.9,2576.8,5.46095]
[1748638384083,1.4316,2576.9,2576.8,5.46095]
[1748638385684,1.4316,2576.9,2576.8,5.46095]
[1748638385876,1.4316,2576.9,2576.8,8.54291665]
[1748638386077,2.20757,2576.9,2576.8,3.08196665]
[1748638386277,7.20757,2576.9,2576.8,7.76696665]
[1748638386478,2.20757,2576.9,2576.8,4.685]
[1748638388087,1.4316,2576.9,2576.8,5.461]
[1748638388682,2.20757,2576.9,2576.8,5.461]
[1748638389184,2.20757,2576.9,2576.8,5.53093857]